Workbook

Sheet 9月份
A1: 陆 丰 市 2025 年 9 月 财 政 预 算 支 出 完 成 情 况 表
A2: 2025-09-30 | O2: 单位：万元
B3: 年 初 | C3: 年度预算计划 | F3: 累计 | G3: 占年 | H3: 上年 | I3: 比上年 | J3: 比上年 | K3: 本月 | L3: 上年 | M3: 比上年 | N3: 比上年
A4: 支 出 项 目 | B4: 预 算 | F4: 完成 | G4: 预算 | H4: 同期 | I4: 同期增 | J4: 同期增 | K4: 完成 | L4: 同月 | M4: 同月增 | N4: 同月增 | O4: 备 注
B5: 数 | C5: 上年结转 | D5: 上级补助 | E5: 本级安排 | F5: 数 | G5: % | H5: 完成 | I5: 减额 | J5: (减)% | K5: 数 | L5: 完成 | M5: 减额 | N5: (减)%
A6: 201、一般公共服务支出 | B6: 68,461 | F6: 58,749 | G6: 85.8 | H6: 68,045 | I6: -9,296 | J6: -13.7 | K6: 18,606 | L6: 28,610 | M6: -10,004 | N6: -35.0 | R6: 一般公共服务 | S6: 201 | T6: 一般公共服务支出 | U6: =VLOOKUP(S6,[1]Sheet1!A$1:C$65536,3,FALSE) -> 58749
A7: 203、国防支出 | B7: 206 | F7: 612 | G7: 297.1 | H7: 40 | I7: 572 | J7: 1430.0 | K7: 0 | L7: 4 | M7: -4 | N7: -100.0 | R7: 国防 | S7: 203 | T7: 国防支出 | U7: =VLOOKUP(S7,[1]Sheet1!A$1:C$65536,3,FALSE) -> 612
A8: 204、公共安全支出 | B8: 48,122 | F8: 34,679 | G8: 72.1 | H8: 61,045 | I8: -26,366 | J8: -43.2 | K8: 5,575 | L8: 27,552 | M8: -21,977 | N8: -79.8 | R8: 公共安全 | S8: 204 | T8: 公共安全支出 | U8: =VLOOKUP(S8,[1]Sheet1!A$1:C$65536,3,FALSE) -> 34679
A9: 205、教育支出 | B9: 243,058 | F9: 157,909 | G9: 65.0 | H9: 139,122 | I9: 18,787 | J9: 13.5 | K9: 26,529 | L9: 11,997 | M9: 14,532 | N9: 121.1 | R9: 教育 | S9: 205 | T9: 教育支出 | U9: =VLOOKUP(S9,[1]Sheet1!A$1:C$65536,3,FALSE) -> 157909
A10: 206、科学技术支出 | B10: 1,653 | F10: 790 | G10: 47.8 | H10: 571 | I10: 219 | J10: 38.4 | K10: 135 | L10: 97 | M10: 38 | N10: 39.2 | R10: 科学技术 | S10: 206 | T10: 科学技术支出 | U10: =VLOOKUP(S10,[1]Sheet1!A$1:C$65536,3,FALSE) -> 790
A11: 207、文化体育与传媒支出 | B11: 8,167 | F11: 3,644 | G11: 44.6 | H11: 3,351 | I11: 293 | J11: 8.7 | K11: 807 | L11: 197 | M11: 610 | N11: 309.6 | R11: 文化旅游体育与传媒 | S11: 207 | T11: 文化旅游体育与传媒支出 | U11: =VLOOKUP(S11,[1]Sheet1!A$1:C$65536,3,FALSE) -> 3644
A12: 208、社会保障和就业支出 | B12: 188,507 | F12: 161,157 | G12: 85.5 | H12: 135,362 | I12: 25,795 | J12: 19.1 | K12: 14,002 | L12: 17,586 | M12: -3,584 | N12: -20.4 | R12: 社会保障和就业 | S12: 208 | T12: 社会保障和就业支出 | U12: =VLOOKUP(S12,[1]Sheet1!A$1:C$65536,3,FALSE) -> 161157
A13: 210、卫生健康支出 | B13: 147,494 | F13: 101,292 | G13: 68.7 | H13: 115,057 | I13: -13,765 | J13: -12.0 | K13: 3,863 | L13: 2,230 | M13: 1,633 | N13: 73.2 | R13: 卫生健康 | S13: 210 | T13: 卫生健康支出 | U13: =VLOOKUP(S13,[1]Sheet1!A$1:C$65536,3,FALSE) -> 101292
A14: 211、节能环保支出 | B14: 4,662 | F14: 984 | G14: 21.1 | H14: 1,592 | I14: -608 | J14: -38.2 | K14: 222 | L14: 410 | M14: -188 | N14: -45.9 | R14: 节能环保 | S14: 211 | T14: 节能环保支出 | U14: =VLOOKUP(S14,[1]Sheet1!A$1:C$65536,3,FALSE) -> 984
A15: 212、城乡社区支出 | B15: 17,700 | F15: 14,091 | G15: 79.6 | H15: 13,865 | I15: 226 | J15: 1.6 | K15: 2,274 | L15: 1,965 | M15: 309 | N15: 15.7 | R15: 城乡社区 | S15: 212 | T15: 城乡社区支出 | U15: =VLOOKUP(S15,[1]Sheet1!A$1:C$65536,3,FALSE) -> 14091
A16: 213、农林水支出 | B16: 88,375 | F16: 66,888 | G16: 75.7 | H16: 49,053 | I16: 17,835 | J16: 36.4 | K16: 5,155 | L16: 9,469 | M16: -4,314 | N16: -45.6 | R16: 农林水 | S16: 213 | T16: 农林水支出 | U16: =VLOOKUP(S16,[1]Sheet1!A$1:C$65536,3,FALSE) -> 66888
A17: 214、交通运输支出 | B17: 27,981 | F17: 15,959 | G17: 57.0 | H17: 8,989 | I17: 6,970 | J17: 77.5 | K17: 897 | L17: 3,250 | M17: -2,353 | N17: -72.4 | R17: 交通运输 | S17: 214 | T17: 交通运输支出 | U17: =VLOOKUP(S17,[1]Sheet1!A$1:C$65536,3,FALSE) -> 15959
A18: 215、资源勘探工业信息等支出 | B18: 543 | F18: 8,054 | G18: 1,483.2 | H18: 545 | I18: 7,509 | J18: 1377.8 | K18: 36 | L18: 11 | M18: 25 | N18: 227.3 | R18: 资源勘探工业信息等 | S18: 215 | T18: 资源勘探工业信息等支出 | U18: =VLOOKUP(S18,[1]Sheet1!A$1:C$65536,3,FALSE) -> 8054
A19: 216、商业服务业等支出 | B19: 641 | F19: 700 | G19: 109.2 | H19: 892 | I19: -192 | J19: -21.5 | K19: 86 | L19: 49 | M19: 37 | N19: 75.5 | R19: 商业服务业等 | S19: 216 | T19: 商业服务业等支出 | U19: =VLOOKUP(S19,[1]Sheet1!A$1:C$65536,3,FALSE) -> 700
A20: 217、金融支出 | B20: 0 | F20: 0 | H20: 1 | I20: -1 | J20: -100.0 | K20: 0 | L20: 0 | M20: 0 | R20: 金融 | S20: 217 | T20: 金融支出 | U20: =VLOOKUP(S20,[1]Sheet1!A$1:C$65536,3,FALSE) -> 0
A21: 220、自然资源海洋气象等支出 | B21: 4,180 | F21: 2,828 | G21: 67.7 | H21: 2,714 | I21: 114 | J21: 4.2 | K21: 579 | L21: 274 | M21: 305 | N21: 111.3 | R21: 自然资源海洋气象等 | S21: 220 | T21: 自然资源海洋气象等支出 | U21: =VLOOKUP(S21,[1]Sheet1!A$1:C$65536,3,FALSE) -> 2828
A22: 221、住房保障支出 | B22: 19,543 | F22: 14,421 | G22: 73.8 | H22: 11,705 | I22: 2,716 | J22: 23.2 | K22: 1,597 | L22: 2,044 | M22: -447 | N22: -21.9 | R22: 住房保障 | S22: 221 | T22: 住房保障支出 | U22: =VLOOKUP(S22,[1]Sheet1!A$1:C$65536,3,FALSE) -> 14421
A23: 222、粮油物资储备支出 | B23: 2,650 | F23: 2,600 | G23: 98.1 | H23: 1,100 | I23: 1,500 | J23: 136.4 | K23: 400 | L23: 300 | M23: 100 | N23: 33.3 | R23: 粮油物资储备 | S23: 222 | T23: 粮油物资储备支出 | U23: =VLOOKUP(S23,[1]Sheet1!A$1:C$65536,3,FALSE) -> 2600
A24: 224、灾害防治及应急管理支出 | B24: 3,407 | F24: 2,955 | G24: 86.7 | H24: 1,731 | I24: 1,224 | J24: 70.7 | K24: 466 | L24: 126 | M24: 340 | N24: 269.8 | R24: 灾害防治及应急管理 | S24: 224 | T24: 灾害防治及应急管理支出 | U24: =VLOOKUP(S24,[1]Sheet1!A$1:C$65536,3,FALSE) -> 2955
A25: 232、债务付息支出 | B25: 5,469 | F25: 2,908 | G25: 53.2 | H25: 1,998 | I25: 910 | J25: 45.5 | K25: 492 | L25: 0 | M25: 492 | R25: 债务付息 | S25: 232 | T25: 债务付息支出 | U25: =VLOOKUP(S25,[1]Sheet1!A$1:C$65536,3,FALSE) -> 2908
A26: 233、债务发行费用支出 | B26: 31 | F26: 130 | G26: 419.4 | H26: 28 | I26: 102 | J26: 364.3 | K26: 22 | L26: 0 | M26: 22 | R26: 债务发行费用 | S26: 233 | T26: 债务发行费用支出 | U26: =VLOOKUP(S26,[1]Sheet1!A$1:C$65536,3,FALSE) -> 130
A27: 227、预备费 | B27: 10,000 | F27: 0 | G27: 0.0 | H27: 0 | I27: 0 | K27: 0 | L27: 0 | M27: 0 | R27: 预备费 | U27: =VLOOKUP(S27,[1]Sheet1!A$1:C$65536,3,FALSE) -> 
A28: 229、其他支出 | B28: 17,121 | F28: 315 | G28: 1.8 | H28: 775 | I28: -460 | J28: -59.4 | K28: 140 | L28: 24 | M28: 116 | N28: 483.3 | R28: 其他支出 | S28: 229 | T28: 其他支出 | U28: =VLOOKUP(S28,[1]Sheet1!A$1:C$65536,3,FALSE) -> 315
A29: 一、一般公共预算支出合计 | B29: 907,971 | F29: 651,665 | G29: 71.8 | H29: 617,581 | I29: 34,084 | J29: 5.5 | K29: 81,883 | L29: 106,195 | M29: -24,312 | N29: -22.9
A30: 二、政府性基金预算支出 | B30: 377,936 | F30: 165,049 | G30: 43.7 | H30: 201,597 | I30: -36,548 | J30: -18.1 | K30: 25,318 | L30: 48,146 | M30: -22,828 | N30: -47.4
A31: 三、国有资本经营支出 | B31: 619 | F31: 724 | G31: 117.0 | H31: 308 | I31: 416 | J31: 135.1 | K31: 52 | L31: 0 | M31: 52
A32: 四、债务还本支出 | B32: 2,000 | F32: 3,002 | G32: 150.1 | H32: 51,130 | I32: -48,128 | J32: -94.1 | K32: 200 | L32: 0 | M32: 200
A33: 支出合计 | B33: 1,288,526 | F33: 820,440 | G33: 63.7 | H33: 870,616 | I33: -50,176 | J33: -5.8 | K33: 107,453 | L33: 154,341 | M33: -46,888 | N33: -30.4
